fUSD/lending_fUSD_20251221
["ID","MTS","AMOUNT","RATE_DAILY","PERIOD"]
[399411129,1766333441833,-150.0,0.0001587,2]
[399411130,1766333441842,-150.0,0.00015882,2]
[399411131,1766333441851,-150.0,0.00015889,2]
[399411132,1766333441861,-150.0,0.00015894,2]
[399411133,1766333441870,-150.0,0.00015899,2]
[399411134,1766333441880,-2465.12499032,0.00015902,2]
[399411135,1766333441891,-150.0,0.00015905,2]
[399411136,1766333441901,-150.0,0.00015919,2]
[399411137,1766333441911,-150.0,0.00015925,2]
[399411138,1766333441921,-150.0,0.00015925,2]
[399411139,1766333441932,-150.0,0.00015935,2]
[399411140,1766333441942,-1252.0,0.00015949,2]
[399411141,1766333441952,-150.0,0.0001596,2]
[399411142,1766333441962,-150.0,0.00015967,2]
[399411143,1766333441972,-150.0,0.00015967,2]
[399411144,1766333441982,-150.0,0.00015967,2]
[399411145,1766333441992,-150.0,0.00015967,2]
[399411146,1766333442001,-500.0,0.00015972,2]
[399411147,1766333442012,-500.0,0.00015972,2]
[399411148,1766333442022,-500.0,0.00015973,2]
[399411149,1766333442031,-500.0,0.00015973,2]
[399411150,1766333442041,-500.0,0.00015973,2]
[399411151,1766333442050,-500.0,0.00015973,2]
[399411152,1766333442069,-500.0,0.00015973,2]
[399411153,1766333442081,-500.0,0.00015973,2]
[399411154,1766333442090,-500.0,0.00015973,2]
[399411155,1766333442100,-500.0,0.00015973,2]
[399411156,1766333442109,-570.29356194,0.00015973,2]
[399411157,1766333442119,-500.0,0.00015973,2]
[399411158,1766333442129,-269.64224637,0.00015973,2]
[399411159,1766333442138,-500.77244015,0.00015973,2]
[399411160,1766333442147,-500.30670484,0.00015973,2]
[399411161,1766333442156,-500.81615011,0.00015973,2]
[399411162,1766333442165,-500.0,0.00015973,2]
[399411163,1766333442175,-162.2682575,0.00015973,2]
[399411164,1766333442184,-500.0,0.00015973,2]
[399411165,1766333442193,-518.86476464,0.00015973,2]
[399411166,1766333442203,-500.0,0.00015973,2]
[399411167,1766333442215,-500.0,0.00015973,2]
[399411168,1766333442224,-500.0,0.00015973,2]
[399411169,1766333442233,-500.0,0.00015973,2]
[399411170,1766333442243,-500.0,0.00015973,2]
[399411171,1766333442252,-500.0,0.00015973,2]
[399411172,1766333442261,-334.60508476,0.00015973,2]
[399411173,1766333442271,-500.0,0.00015973,2]
[399411174,1766333442280,-590.29428357,0.00015973,2]
[399411175,1766333442289,-500.0,0.00015973,2]
[399411176,1766333442299,-160.18740865,0.00015973,2]
[399411177,1766333442309,-160.18648371,0.00015973,2]
[399411178,1766333442318,-500.0,0.00015973,2]
[399411179,1766333442329,-160.18741035,0.00015973,2]
[399411180,1766333442339,-160.18740865,0.00015973,2]
[399411181,1766333442349,-160.18648397,0.00015973,2]
[399411182,1766333442358,-160.18818998,0.00015973,2]
[399411183,1766333442368,-160.18741035,0.00015973,2]
[399411184,1766333442377,-150.17482874,0.00015973,2]
[399411185,1766333442387,-500.52093975,0.00015973,2]
[399411186,1766333442396,-160.18477965,0.00015973,2]
[399411187,1766333442406,-500.0,0.00015973,2]
[399411188,1766333442421,-500.0,0.00015973,2]
[399411189,1766333442431,-500.4654119,0.00015973,2]
[399411190,1766333442440,-500.0,0.00015973,2]
[399411191,1766333442450,-162.38378184,0.00015973,2]
[399411192,1766333442460,-500.51801303,0.00015973,2]
[399411193,1766333442470,-555.97636192,0.00015973,2]
[399411194,1766333442480,-500.56420784,0.00015973,2]
[399411195,1766333442489,-500.0,0.00015973,2]
[399411196,1766333442499,-330.74959628,0.00015973,2]
[399411197,1766333442509,-452.23233136,0.00015973,2]
[399411198,1766333442520,-160.18819168,0.00015973,2]
[399411199,1766333442530,-160.18740865,0.00015973,2]
[399411200,1766333442539,-500.0,0.00015973,2]
[399411201,1766333442550,-160.18741035,0.00015973,2]
[399411202,1766333442560,-160.18740865,0.00015973,2]
[399411203,1766333442570,-160.18740865,0.00015973,2]
[399411204,1766333442581,-500.0,0.00015973,2]
[399411205,1766333442591,-177.38138354,0.00015973,2]
[399411206,1766333442601,-160.18546537,0.00015973,2]
[399411207,1766333442614,-160.18740865,0.00015973,2]
[399411208,1766333442625,-160.176,0.00015973,2]
[399411209,1766333442640,-500.67170266,0.00015973,2]
[399411211,1766333442650,-160.18740865,0.00015973,2]
[399411213,1766333442660,-500.0,0.00015973,2]
[399411214,1766333442670,-160.18740865,0.00015973,2]
[399411215,1766333442681,-500.0,0.00015973,2]
[399411216,1766333442691,-500.0,0.00015973,2]
[399411217,1766333442701,-500.0,0.00015973,2]
[399411218,1766333442711,-500.0,0.00015973,2]
[399411219,1766333442722,-500.0,0.00015973,2]
[399411220,1766333442731,-500.0,0.00015973,2]
[399411221,1766333442741,-500.0,0.00015973,2]
[399411223,1766333442751,-500.0,0.00015973,2]
[399411225,1766333442760,-500.0,0.00015973,2]
[399411226,1766333442769,-500.0,0.00015973,2]
[399411229,1766333442780,-500.0,0.00015973,2]
[399411230,1766333442790,-500.0,0.00015973,2]
[399411232,1766333442799,-168.59717172,0.00015973,2]
[399411233,1766333442809,-500.0,0.00015973,2]
[399411234,1766333442823,-500.0,0.00015973,2]
[399411235,1766333442832,-500.0,0.00015973,2]
[399411236,1766333442843,-150.0,0.00015975,2]
[399411237,1766333442852,-150.0,0.00015983,2]
[399411238,1766333442862,-150.0,0.00015995,2]
[399411239,1766333442872,-3000.0,0.00016012,2]
[399411240,1766333442882,-2577.26528562,0.00016012,2]
[399411241,1766333442892,-150.0,0.00016016,2]
[399411242,1766333442903,-150.0,0.00016016,2]
[399411243,1766333442913,-150.0,0.00016016,2]
[399411244,1766333442922,-150.0,0.00016031,2]
[399411245,1766333442932,-150.0,0.00016035,2]
[399411246,1766333442942,-150.0,0.00016052,2]
[399411247,1766333442951,-150.0,0.00016056,2]
[399411248,1766333442961,-150.0,0.0001606,2]
[399411249,1766333442971,-150.0,0.00016064,2]
[399411250,1766333442980,-150.0,0.00016066,2]
[399411251,1766333442990,-150.0,0.00016097,2]
[399411252,1766333443000,-150.0,0.00016102,2]
[399411253,1766333443014,-150.0,0.00016103,2]
[399411254,1766333443025,-150.0,0.00016113,2]
[399411255,1766333443035,-150.0,0.00016137,2]
[399411256,1766333443046,-150.0,0.00016137,2]
[399411257,1766333443056,-150.0,0.00016137,2]
[399411258,1766333443067,-150.0,0.00016137,2]
[399411259,1766333443078,-150.0,0.00016137,2]
[399411260,1766333443088,-150.0,0.00016137,2]
[399411261,1766333443098,-150.0,0.00016137,2]
[399411262,1766333443108,-150.0,0.00016161,2]
[399411263,1766333443118,-150.0,0.00016171,2]
[399411264,1766333443127,-150.0,0.00016172,2]
[399411265,1766333443137,-150.0,0.00016177,2]
[399411266,1766333443148,-150.0,0.00016208,2]
[399411267,1766333443158,-150.0,0.0001621,2]
[399411268,1766333443168,-150.0,0.00016214,2]
[399411269,1766333443178,-150.0,0.00016218,2]
[399411270,1766333443187,-150.0,0.00016222,2]
[399411271,1766333443197,-334.23,0.00016238,2]
[399411272,1766333443207,-150.0,0.00016239,2]
[399411273,1766333443220,-150.0,0.00016243,2]
[399411274,1766333443230,-361.83,0.00016248,2]
[399411275,1766333443239,-4609.0,0.00016248,2]
[399411276,1766333443249,-23659.80766939,0.00016249,2]
[399411278,1766333443259,-19924.45879842,0.00016249,2]
[399411279,1766333443268,-150.0,0.00016258,2]
[399411281,1766333443278,-150.0,0.00016258,2]
[399411283,1766333443287,-150.0,0.00016258,2]
[399411284,1766333443297,-150.0,0.00016279,2]
[399411285,1766333443307,-1838.83,0.00016286,2]
[399411286,1766333443316,-150.0,0.00016291,2]
[399411287,1766333443326,-150.0,0.00016299,2]
[399411288,1766333443335,-150.0,0.00016307,2]
[399411289,1766333443344,-150.0,0.00016307,2]
[399411290,1766333443354,-150.0,0.00016307,2]
[399411291,1766333443364,-150.0,0.00016307,2]
[399411292,1766333443374,-150.0,0.00016314,2]
[399411293,1766333443383,-150.0,0.00016339,2]
[399411294,1766333443393,-150.0,0.00016349,2]
[399411295,1766333443403,-150.0,0.00016349,2]
[399411296,1766333443416,-150.0,0.00016355,2]
[399411297,1766333443427,-150.0,0.00016369,2]
[399411298,1766333443437,-150.0,0.00016375,2]
[399411299,1766333443446,-150.0,0.0001638,2]
[399411300,1766333443456,-150.0,0.00016385,2]
[399411301,1766333443466,-150.0,0.00016392,2]
[399411302,1766333443475,-150.0,0.00016404,2]
[399411303,1766333443485,-150.0,0.0001642,2]
[399411304,1766333443495,-150.0,0.0001642,2]
[399411305,1766333443505,-150.0,0.0001642,2]
[399411306,1766333443515,-150.0,0.0001642,2]
[399411307,1766333443525,-500.0,0.00016437,2]
[399411308,1766333443535,-500.0,0.00016437,2]
[399411309,1766333443545,-500.0,0.00016437,2]
[399411310,1766333443554,-500.0,0.00016437,2]
[399411311,1766333443564,-500.0,0.00016437,2]
[399411312,1766333443574,-500.0,0.00016437,2]
[399411313,1766333443584,-1336.05775489,0.00016438,2]
[399411314,1766333443594,-1336.05775489,0.00016438,2]
[399411315,1766333443604,-1336.05775489,0.00016438,2]
[399411316,1766333443614,-1336.05775489,0.00016438,2]
[399411317,1766333443624,-1336.05775489,0.00016438,2]
[399411318,1766333443637,-1336.05775489,0.00016438,2]
[399411319,1766333443647,-1336.05775489,0.00016438,2]
[399411320,1766333443656,-1336.05775489,0.00016438,2]
[399411321,1766333443666,-1336.05775489,0.00016438,2]
[399411322,1766333443675,-1336.05775489,0.00016438,2]
[399411323,1766333443685,-1336.05775489,0.00016438,2]
[399411324,1766333443695,-1336.05775489,0.00016438,2]
[399411325,1766333443705,-1336.05775489,0.00016438,2]
[399411326,1766333443715,-1336.05775489,0.00016438,2]
[399411327,1766333443726,-1336.05775489,0.00016438,2]
[399411328,1766333443735,-1336.05775489,0.00016438,2]
[399411329,1766333443744,-1336.05775489,0.00016438,2]
[399411330,1766333443754,-1336.05775489,0.00016438,2]
[399411331,1766333443763,-1336.05775489,0.00016438,2]
[399411332,1766333443772,-1336.05775489,0.00016438,2]
[399411333,1766333443782,-1336.05775489,0.00016438,2]
[399411334,1766333443791,-1336.05775489,0.00016438,2]
[399411335,1766333443801,-1336.05775489,0.00016438,2]
[399411336,1766333443810,-1336.05775489,0.00016438,2]
[399411337,1766333443819,-1336.05775489,0.00016438,2]
[399411338,1766333443829,-1336.05775489,0.00016438,2]
[399411339,1766333443839,-1336.05775489,0.00016438,2]
[399411340,1766333443848,-1336.05775489,0.00016438,2]
[399411341,1766333443857,-1336.05775489,0.00016438,2]
[399411342,1766333443867,-1336.05775489,0.00016438,2]
[399411343,1766333443877,-1336.05775489,0.00016438,2]
[399411344,1766333443886,-1336.05775489,0.00016438,2]
[399411345,1766333443896,-1336.05775489,0.00016438,2]
[399411346,1766333443906,-1336.05775489,0.00016438,2]
[399411347,1766333443917,-1336.05775489,0.00016438,2]
[399411348,1766333443926,-1336.05775489,0.00016438,2]
[399411349,1766333443936,-1336.05775489,0.00016438,2]
[399411350,1766333443945,-1336.05775489,0.00016438,2]
[399411351,1766333443955,-1336.05775489,0.00016438,2]
[399411352,1766333443965,-1336.05775489,0.00016438,2]
[399411353,1766333443975,-1336.05775489,0.00016438,2]
[399411354,1766333443985,-1336.05775489,0.00016438,2]
[399411355,1766333443995,-1336.05775489,0.00016438,2]
[399411356,1766333444005,-1336.05775489,0.00016438,2]
[399411357,1766333444014,-1336.05775489,0.00016438,2]
[399411358,1766333444024,-2295.82290478,0.00016438,2]
[399411359,1766333444034,-2295.82290478,0.00016438,2]
[399411360,1766333444043,-2295.82290478,0.00016438,2]
[399411361,1766333444052,-2295.82290478,0.00016438,2]
[399411362,1766333444062,-2295.82290478,0.00016438,2]
[399411363,1766333444071,-2295.82290478,0.00016438,2]
[399411364,1766333444082,-2295.82290478,0.00016438,2]
[399411365,1766333444091,-2295.82290478,0.00016438,2]
[399411366,1766333444101,-2295.82290478,0.00016438,2]
[399411367,1766333444111,-2295.82290478,0.00016438,2]
[399411368,1766333444121,-2295.82290478,0.00016438,2]
[399411369,1766333444130,-2295.82290478,0.00016438,2]
[399411370,1766333444140,-2295.82290478,0.00016438,2]
[399411371,1766333444150,-2295.82290478,0.00016438,2]
[399411372,1766333444160,-2295.82290478,0.00016438,2]
[399411373,1766333444169,-2295.82290478,0.00016438,2]
[399411374,1766333444179,-2295.82290478,0.00016438,2]
[399411375,1766333444188,-2295.82290478,0.00016438,2]
[399411376,1766333444198,-2295.82290478,0.00016438,2]
[399411377,1766333444208,-2295.82290478,0.00016438,2]
[399411378,1766333444218,-2295.82290478,0.00016438,2]
[399411379,1766333444228,-2295.82290478,0.00016438,2]
[399411380,1766333444238,-2295.82290478,0.00016438,2]
[399411381,1766333444249,-2295.82290478,0.00016438,2]
[399411382,1766333444259,-2295.82290478,0.00016438,2]
[399411383,1766333444268,-2295.82290478,0.00016438,2]
[399411384,1766333444278,-2295.82290478,0.00016438,2]
[399411385,1766333444287,-2295.82290478,0.00016438,2]
[399411386,1766333444297,-2295.82290478,0.00016438,2]
[399411387,1766333444307,-2295.82290478,0.00016438,2]
[399411388,1766333444316,-2295.82290478,0.00016438,2]
[399411389,1766333444326,-2295.82290478,0.00016438,2]
[399411390,1766333444336,-2238.42733214,0.00016438,2]
[399411391,1766333444346,-2238.42733214,0.00016438,2]
[399411392,1766333444356,-2238.42733214,0.00016438,2]
[399411393,1766333444366,-2313.04157655,0.00016438,2]
[399411394,1766333444375,-2313.04157655,0.00016438,2]
[399411395,1766333444385,-2313.04157655,0.00016438,2]
[399411396,1766333444395,-2313.04157655,0.00016438,2]
[399411397,1766333444405,-2313.04157655,0.00016438,2]
[399411398,1766333444415,-2313.04157655,0.00016438,2]
[399411399,1766333444424,-2313.04157655,0.00016438,2]
[399411400,1766333444434,-2313.04157655,0.00016438,2]
[399411401,1766333444443,-2313.04157655,0.00016438,2]
[399411402,1766333444453,-553.63,0.00016438,2]
[399411403,1766333444463,-800.0,0.00016438,2]
[399411404,1766333444473,-150.0,0.00016443,2]
[399411405,1766333444483,-150.0,0.00016446,2]
[399411406,1766333444492,-150.0,0.00016452,2]
[399411407,1766333444502,-150.0,0.00016455,2]
[399411408,1766333444512,-150.0,0.00016461,2]
[399411409,1766333444522,-500.0,0.00016466,2]
[399411410,1766333444531,-150.0,0.00016477,2]
[399411411,1766333444541,-150.0,0.00016491,2]
[399411412,1766333444551,-150.0,0.00016501,2]
[399411413,1766333444561,-150.0,0.00016501,2]
[399411414,1766333444571,-150.0,0.00016501,2]
[399411415,1766333444580,-150.0,0.00016511,2]
[399411416,1766333444590,-500.0,0.0001652,2]
[399411417,1766333444599,-221.06533037,0.0001652,2]
[399411418,1766333444609,-500.0,0.0001652,2]
[399411419,1766333444618,-500.0,0.0001652,2]
[399411420,1766333444629,-1002.96949263,0.00016521,2]
[399411421,1766333444641,-1000.0,0.00016521,2]
[399411422,1766333444650,-1000.0,0.00016521,2]
[399411423,1766333444659,-502.52786195,0.00016521,2]
[399411424,1766333444669,-248.8938967,0.00016521,2]
[399411425,1766333444678,-226.54246888,0.00016521,2]
[399411426,1766333444687,-1000.0,0.00016521,2]
[399411427,1766333444697,-1000.0,0.00016521,2]
[399411428,1766333444707,-1000.0,0.00016521,2]
[399411429,1766333444717,-1000.0,0.00016521,2]
[399411430,1766333444727,-1000.0,0.00016521,2]
[399411431,1766333444737,-1000.0,0.00016521,2]
[399411432,1766333444747,-1000.0,0.00016521,2]
[399411433,1766333444757,-1000.0,0.00016521,2]
[399411434,1766333444767,-1000.0,0.00016521,2]
[399411435,1766333444777,-1000.0,0.00016521,2]
[399411436,1766333444786,-576.10062402,0.00016521,2]
[399411437,1766333444796,-810.71387342,0.00016521,2]
[399411438,1766333444805,-979.05040621,0.00016521,2]
[399411439,1766333444815,-1000.0,0.00016521,2]
[399411440,1766333444824,-511.36256137,0.00016521,2]
[399411441,1766333444834,-1000.0,0.00016521,2]
[399411442,1766333444843,-1000.0,0.00016521,2]
[399411443,1766333444853,-1000.0,0.00016521,2]
[399411444,1766333444862,-1000.0,0.00016521,2]
[399411445,1766333444872,-378.15038662,0.00016521,2]
[399411446,1766333444882,-1000.0,0.00016521,2]
[399411447,1766333444891,-1000.0,0.00016521,2]
[399411448,1766333444901,-1000.0,0.00016521,2]
[399411449,1766333444911,-1000.0,0.00016521,2]
[399411450,1766333444921,-1000.0,0.00016521,2]
[399411451,1766333444932,-1001.73216536,0.00016521,2]
[399411452,1766333444941,-1000.0,0.00016521,2]
[399411453,1766333444951,-1000.0,0.00016521,2]
[399411454,1766333444960,-669.31135743,0.00016521,2]
[399411455,1766333444970,-1000.0,0.00016521,2]
[399411456,1766333444979,-1000.0,0.00016521,2]
[399411457,1766333444988,-1000.0,0.00016521,2]
[399411458,1766333444999,-150.0,0.00016523,2]
[399411459,1766333445010,-150.0,0.00016526,2]
[399411460,1766333445021,-150.0,0.00016541,2]
[399411461,1766333445030,-1000.0,0.00016543,2]
[399411462,1766333445040,-339.693,0.00016543,2]
[399411463,1766333445051,-150.0,0.0001655,2]
[399411464,1766333445061,-857.23914881,0.00016559,2]
[399411465,1766333445071,-1838.83,0.0001656,2]
[399411466,1766333445082,-3500.0,0.0001656,2]
[399411467,1766333445093,-150.0,0.00016562,2]
[399411468,1766333445103,-150.0,0.00016562,2]
[399411469,1766333445112,-150.0,0.00016562,2]
[399411470,1766333445122,-150.0,0.00016579,2]
[399411471,1766333445132,-150.0,0.00016582,2]
[399411472,1766333445141,-150.0,0.00016597,2]
[399411473,1766333445151,-150.0,0.00016598,2]
[399411474,1766333445161,-150.0,0.000166,2]
[399411475,1766333445170,-150.0,0.00016622,2]
[399411476,1766333445180,-150.0,0.00016632,2]
[399411477,1766333445190,-150.0,0.00016647,2]
[399411478,1766333445199,-150.0,0.00016647,2]
[399411479,1766333445209,-150.0,0.00016647,2]
[399411481,1766333445219,-150.0,0.00016647,2]
[399411482,1766333445229,-3002.51609203,0.0001666,2]
[399411483,1766333445241,-150.0,0.00016663,2]
[399411484,1766333445251,-150.0,0.00016668,2]
[399411485,1766333445262,-150.0,0.00016677,2]
[399411486,1766333445272,-150.0,0.00016695,2]
[399411487,1766333445283,-150.0,0.00016703,2]
[399411488,1766333445294,-150.0,0.00016703,2]
[399411489,1766333445304,-150.0,0.00016703,2]
[399411490,1766333445314,-165.14,0.00016712,2]
[399411491,1766333445324,-150.0,0.00016715,2]
[399411492,1766333445334,-222.82,0.0001672,2]
[399411493,1766333445343,-201.01,0.00016721,2]
[399411494,1766333445597,-150.0,0.00016732,2]
[399411495,1766333445609,-150.0,0.00016739,2]
[399411496,1766333445619,-150.0,0.00016744,2]
[399411497,1766333445629,-150.0,0.00016744,2]
[399411498,1766333445643,-150.0,0.00016744,2]
[399411499,1766333445654,-150.0,0.00016755,2]
[399411500,1766333445663,-150.0,0.00016774,2]
[399411501,1766333445674,-150.0,0.00016774,2]
[399411502,1766333445684,-201.01,0.00016774,2]
[399411503,1766333445694,-222.82,0.0001678,2]
[399411504,1766333445704,-150.0,0.00016782,2]
[399411505,1766333445713,-150.0,0.00016784,2]
[399411506,1766333445724,-150.0,0.00016792,2]
[399411507,1766333445734,-150.0,0.00016809,2]
[399411508,1766333445743,-150.0,0.00016816,2]
[399411511,1766333445754,-150.0,0.00016825,2]
[399411513,1766333445764,-201.01,0.00016827,2]
[399411515,1766333445773,-7000.0,0.0001683,2]
[399411517,1766333445783,-198.94914877,0.00016831,2]
[399411519,1766333445792,-150.0,0.00016832,2]
[399411521,1766333445801,-1838.83,0.00016834,2]
[399411523,1766333445811,-150.0,0.00016841,2]
[399411525,1766333445822,-150.0,0.00016845,2]
[399411527,1766333445832,-150.0,0.0001685,2]
[399411529,1766333445841,-150.0,0.00016865,2]
[399411531,1766333445851,-28193.91395563,0.00016873,2]
[399411533,1766333445860,-150.0,0.0001688,2]
[399411535,1766333445870,-150.0,0.00016889,2]
[399411537,1766333445879,-1413.57889938,0.00016892,2]
[399411539,1766333445889,-498.66042045,0.00016892,2]
[399411541,1766333445898,-10000.0,0.000169,2]
[399411543,1766333445908,-23659.80766939,0.000169,2]
[399411545,1766333445918,-19924.45879842,0.000169,2]
[399411547,1766333445927,-1584.55557544,0.000169,2]
[399411549,1766333445938,-458.04273928,0.000169,2]
[399411551,1766333445947,-1406.60977324,0.000169,2]
[399411553,1766333445957,-150.0,0.00016901,2]
[399411554,1766333445966,-150.0,0.00016905,2]
[399411555,1766333445977,-150.0,0.00016909,2]
[399411556,1766333445986,-150.0,0.00016916,2]
[399411558,1766333445997,-150.0,0.00016918,2]
[399411561,1766333446007,-150.0,0.00016938,2]
[399411563,1766333446016,-150.0,0.00016946,2]
[399411565,1766333446027,-150.0,0.00016951,2]
[399411567,1766333446037,-150.0,0.00016973,2]
[399411569,1766333446047,-150.32225297,0.00016973,2]
[399411571,1766333446057,-549.74315086,0.00016983,2]
[399411573,1766333446067,-160.33063992,0.00016986,2]
[399411575,1766333446076,-155.64705311,0.00016986,2]
[399411577,1766333446087,-158.48329942,0.00016986,2]
[399411578,1766333446097,-152.0542516,0.00016986,2]
[399411579,1766333446107,-156.76422926,0.00016986,2]
[399411580,1766333446116,-164.52110484,0.00016986,2]
[399411581,1766333446126,-152.94375339,0.00016986,2]
[399411582,1766333446136,-151.72084113,0.00016986,2]
[399411583,1766333446145,-151.68546766,0.00016986,2]
[399411584,1766333446156,-152.11986511,0.00016986,2]
[399411585,1766333446165,-157.75435091,0.00016986,2]
[399411586,1766333446174,-150.82546103,0.00016986,2]
[399411587,1766333446184,-162.0002847,0.00016986,2]
[399411588,1766333446193,-152.70737667,0.00016986,2]
[399411590,1766333446202,-151.0,0.00016989,2]
[399411591,1766333446212,-597.97537004,0.0001699,2]
[399411592,1766333446221,-597.97537004,0.0001699,2]
[399411593,1766333446231,-4071.3327934,0.00016992,2]
[399411594,1766333446240,-1039001.998657,0.00016992,2]
[399411595,1766333446250,-15412.2234845,0.00016992,2]
[399411596,1766333446260,-1049.7136421,0.00016992,2]
[399411597,1766333446270,-83939.9320333,0.00016992,2]
[399411598,1766333446279,-500.0,0.00016995,2]
[399411599,1766333446288,-500.0,0.00016995,2]
[399411600,1766333446299,-500.0,0.00016995,2]
[399411601,1766333446308,-500.0,0.00016995,2]
[399411603,1766333446317,-500.0,0.00016995,2]
[399411605,1766333446327,-500.0,0.00016995,2]
[399411607,1766333446337,-500.0,0.00016995,2]
[399411609,1766333446346,-500.0,0.00016997,2]
[399411611,1766333446356,-151.0,0.00016997,2]
[399411613,1766333446366,-151.0,0.00016997,2]
[399411615,1766333446376,-151.0,0.00016997,2]
[399411616,1766333446385,-500.0,0.00016999,2]
[399411617,1766333446395,-500.0,0.00016999,2]
[399411618,1766333446405,-500.0,0.00016999,2]
[399411619,1766333446415,-500.0,0.00016999,2]
[399411620,1766333446424,-500.0,0.00016999,2]
[399411621,1766333446434,-394.42,0.00016999,2]
[399411622,1766333446443,-500.0,0.00016999,2]
[399411623,1766333446453,-500.0,0.00016999,2]
[399411624,1766333446463,-338.74351494,0.00016999,2]
[399411625,1766333446473,-548.39145634,0.00016999,2]
[399411626,1766333446482,-500.0,0.00016999,2]
[399411627,1766333446491,-500.0,0.00016999,2]
[399411628,1766333446502,-500.0,0.00016999,2]
[399411629,1766333446511,-500.0,0.00016999,2]
[399411630,1766333446521,-181981.01807983,0.00017,2]
[399411631,1766333446723,-12427.28438952,0.00017,2]
[399411632,1766333446735,-8300.26814779,0.00017,2]
[399411633,1766333446746,-489.23389195,0.00017,2]
[399411634,1766333446762,-1174.0667096,0.00017,2]
[399411635,1766333446773,-1315.68623605,0.00017,2]
[399411636,1766333446785,-580.25878155,0.00017,2]
[399411637,1766333446796,-650.0,0.00017,2]
[399411638,1766333446807,-17020.01987192,0.00017,2]
[399411639,1766333446818,-4038.49465,0.00017,2]
[399411640,1766333446829,-387.4725984,0.00017,2]
[399411641,1766333446840,-12564.72383938,0.00017,2]
[399411642,1766333446852,-393.80678647,0.00017,2]
[399411643,1766333446863,-3027.18735771,0.00017,2]
[399411644,1766333446891,-2890425.25849062,0.00017,2]
[399411645,1766333446900,-2000.0,0.00017,2]
[399411646,1766333446910,-1000.0,0.00017,2]
[399411647,1766333446919,-1000.0,0.00017,2]
[399411648,1766333446929,-1000.0,0.00017,2]
[399411649,1766333446938,-1000.0,0.00017,2]
[399411650,1766333446948,-1000.0,0.00017,2]
[399411651,1766333446957,-1000.0,0.00017,2]
[399411652,1766333446966,-1000.0,0.00017,2]
[399411653,1766333446975,-1000.0,0.00017,2]
[399411654,1766333446984,-1000.0,0.00017,2]
[399411655,1766333446993,-1000.0,0.00017,2]
[399411656,1766333447002,-1000.0,0.00017,2]
[399411657,1766333447012,-1000.0,0.00017,2]
[399411658,1766333447021,-1000.0,0.00017,2]
[399411659,1766333447031,-1000.0,0.00017,2]
[399411660,1766333447040,-1000.0,0.00017,2]
[399411661,1766333447049,-1000.0,0.00017,2]
[399411662,1766333447059,-1000.0,0.00017,2]
[399411663,1766333447069,-1000.0,0.00017,2]
[399411664,1766333447078,-1000.0,0.00017,2]
[399411665,1766333447088,-1000.0,0.00017,2]
[399411666,1766333447097,-1000.0,0.00017,2]
[399411667,1766333447106,-1000.0,0.00017,2]
[399411668,1766333447116,-1000.0,0.00017,2]
[399411669,1766333447126,-1000.0,0.00017,2]
[399411670,1766333447135,-1000.0,0.00017,2]
[399411671,1766333447144,-1000.0,0.00017,2]
[399411672,1766333447153,-1000.0,0.00017,2]
[399411673,1766333447162,-1074.23710306,0.00017,2]
[399411674,1766333447172,-250.0,0.00017,2]
[399411675,1766333447181,-151.0,0.00017,2]
[399411676,1766333447191,-241.263602,0.00017,2]
[399411677,1766333447200,-1500.0,0.00017068,2]
[399411678,1766333447210,-1580.39649573,0.00017068,2]
[399411679,1766333447219,-1425.24812861,0.00017068,2]
[399411680,1766333447229,-1500.0,0.00017068,2]
[399411681,1766333447239,-1503.04548544,0.00017068,2]